Cogmind - Beta 15 @@@ ROGUE MODE // 2025.05.08 @ 21:23:42 Player: gorb Result: Destroyed by P-70 Sage with Tesla Rifle Performance ------------- Evolutions (5) 2500 Regions Visited (9) 1800 Robots Destroyed (65) 325 Value Destroyed (1436) 1436 Prototype IDs (25) 500 Alien Tech Used (0) 0 Bonus (300) 300 TOTAL SCORE: 6861 Bonus ------- Aligned with FarCom 300 Cogmind --------- Core Integrity 0/1000 Matter 6/300 Energy 77/100 System Corruption 4% Temperature Cool (9) Movement Core (50) Location -5/Factory Parts ------- > --- POWER (2) -------- (None) > --- PROPULSION (4) --- (None) > --- UTILITY (7) ------ (None) > --- WEAPON (4) ------- (None) > --- INVENTORY (5) ---- Fission Core Micro Fission Core Carbon-fiber Leg Faulty Cooled Cesium-ion Thruster Weight Redist. System Peak State ------------ > --- POWER ------------ Deuterium Engine Light Angular Momentum Engine > --- PROPULSION ------- Titanium Leg Titanium Leg Titanium Leg Improved Carbon-fiber Leg > --- UTILITY ---------- Medium Storage Unit Compact Matter Pod Improved Terrain Scanner ECM Suite EM Shield > --- WEAPON ----------- Light EM Pulse Cannon Cooled Particle Cannon Gauss Rifle > --- INVENTORY -------- Carbon-fiber Leg Improved Carbon-fiber Leg Gravmag System Gravmag System Weight Redist. System Advanced ECM Suite Supersonic Drone Bay Gauss Cannon [Rating: 48] Favorites ----------- Power Light Angular Momentum Engine Engine Light Angular Momentum Engine Power Core Light Nuclear Core Propulsion Titanium Leg Treads Light Treads Leg Titanium Leg Hover Unit Antigrav System Utility Small Storage Unit Device Improved Terrain Scanner Storage Small Storage Unit Processor Targeting Computer Protection Medium Armor Plating Weapon Mini Grenade Launcher Energy Gun Shock Rifle Energy Cannon Cooled Particle Cannon Ballistic Gun Light Assault Rifle Launcher Mini Grenade Launcher Build | -11 -10 -9 -9 -9 -8 -8 -7 -6 -5 ------- Run | Yrd Mat Mat Min Exi Min Mat Fac Fac Fac Slots Evolved 10 | . . 2 . . . 2 2 2 2 Power 1 | . . . . . . . . 1 . Propulsion 2 | . . . . . . . 2 . . Utility 5 | . . 2 . . . 1 . 1 1 Weapon 2 | . . . . . . 1 . . 1 Parts Attached 66 | 6 9 7 3 1 7 18 7 1 7 Power 11 | 1 3 2 . . 2 . 1 . 2 Engine 8 | 1 3 2 . . 2 . . . . Core 3 | . . . . . . . 1 . 2 Reactor . | . . . . . . . . . . Propulsion 17 | 2 2 2 2 . 1 6 . . 2 Treads 4 | 2 . . 2 . . . . . . Leg 11 | . 2 2 . . 1 6 . . . Wheel . | . . . . . . . . . . Hover 2 | . . . . . . . . . 2 Flight . | . . . . . . . . . . Utility 21 | 1 1 2 1 1 2 9 2 1 1 Device 8 | . . . 1 1 1 2 2 1 . Storage 7 | 1 . 1 . . . 4 . . 1 Processor 3 | . 1 . . . . 2 . . . Hackware . | . . . . . . . . . . Protection 3 | . . 1 . . 1 1 . . . Artifact . | . . . . . . . . . . Weapon 17 | 2 3 1 . . 2 3 4 . 2 Energy Gun 4 | . . 1 . . . 2 . . 1 Energy Cannon 4 | . . . . . . . 3 . 1 Ballistic Gun 5 | 2 1 . . . 1 . 1 . . Ballistic Cannon . | . . . . . . . . . . Launcher 4 | . 2 . . . 1 1 . . . Special Weapon . | . . . . . . . . . . Impact Weapon . | . . . . . . . . . . Slashing Weapon . | . . . . . . . . . . Piercing Weapon . | . . . . . . . . . . Special Melee Weapon . | . . . . . . . . . . Unidentified Prototypes 3 | . . 1 . 1 . . 1 . . Parts Lost 33 | . 6 9 . . 3 3 5 6 1 Power 8 | . 3 2 . . . . 1 2 . Propulsion 10 | . 2 3 . . 2 . . 3 . Utility 4 | . . 1 . . . 2 1 . . Weapon 11 | . 1 3 . . 1 1 3 1 1 Highest Loss Streak 6 | . 4 6 . . 3 1 5 6 1 To Critical Strikes 1 | . 1 . . . . . . . . Average Backups 7 | 3 6 3 7 7 7 8 8 8 5 Power 1 | 1 . . 3 3 1 2 1 . 1 Propulsion 2 | 1 2 1 2 2 1 3 2 4 1 Utility 1 | . 1 . . . 2 1 2 3 1 Weapon 1 | 1 1 2 2 2 1 . 1 1 . Tool/Special . | . . . . . . . . . . Unused Backups 12 | . 1 . . 1 3 4 . 1 2 Power 4 | . . . . 1 3 . . . . Propulsion 5 | . . . . . . 3 . 1 1 Utility 1 | . 1 . . . . . . . . Weapon 2 | . . . . . . 1 . . 1 Tool/Special . | . . . . . . . . . . Average Slot Usage (%) 85 | . 92 79 91 100 98 95 90 87 4 Engine 8 | . 9 7 11 11 11 9 2 12 . Treads 9 | . 24 . 20 22 19 . . . . Leg 10 | . 2 18 . . 1 16 29 24 . Device 10 | . . . 4 11 10 18 15 15 . Storage 13 | . 14 20 22 22 11 14 12 13 . Processor 6 | . 12 11 11 11 11 6 . . . Protection 3 | . . 1 . . 10 2 4 . . Energy Gun 4 | . . 5 11 11 . 11 2 . . Energy Cannon 2 | . . . . . . . 8 13 . Ballistic Gun 4 | . 27 5 . . 1 3 1 5 . Launcher 9 | . . 9 11 11 20 11 6 . . Peak Build Rating 48 | 6 8 12 15 21 21 35 42 48 17 Average Rating 21 | 3 6 9 13 16 17 30 35 44 6 On Entrance 14 | . 6 7 11 15 21 16 32 38 2 Naked Turns 139 | . . . . . . . . 1 138 Heaviest Build 48 | 12 12 25 26 26 27 38 42 48 15 Greatest Support 66 | 40 40 20 40 40 46 42 66 51 11 Greatest Overweight (x) 8 | . 2 5 2 . 8 7 1 1 4 Average Overweight (x) . | . . . . . . . . . . Largest Inventory Capacity 25 | 8 8 8 8 8 8 10 10 10 25 Average Capacity 8 | 6 8 8 8 8 8 9 10 9 5 Most Carried 10 | 5 8 8 8 8 8 10 10 9 6 Average Carried 7 | 3 6 3 7 7 7 8 8 8 5 Final Capacity 10 | 8 8 8 8 8 8 10 10 5 5 Final Carried 10 | 4 5 8 8 8 8 10 9 5 5 Class Distribution -------------------- 53% | Mutant 46% | Skirmisher Dominant Class ---------------- Mutant | -10/Materials Mutant | -9/Materials Mutant | -9/Mines Mutant | -9/Exiles Mutant | -8/Mines Skirmisher | -8/Materials Skirmisher | -7/Factory Skirmisher | -6/Factory Mutant | -5/Factory Resources | -11 -10 -9 -9 -9 -8 -8 -7 -6 -5 ----------- Run | Yrd Mat Mat Min Exi Min Mat Fac Fac Fac Matter Collected 1363 | 223 260 204 280 . 114 181 99 2 . Remotely . | . . . . . . . . . . Salvage Created 1384 | . 292 591 22 . 164 216 99 . . Parts 112 | . 20 48 8 . 8 22 6 . . Haulers Intercepted 1 | . . 1 . . . . . . . Recyclers Shooed 2 | . . 1 . . . . . . 1 Parts Field Recycled . | . . . . . . . . . . Retrieved Matter . | . . . . . . . . . . Parts Self-Destructed . | . . . . . . . . . . Prevented . | . . . . . . . . . . Kills | -11 -10 -9 -9 -9 -8 -8 -7 -6 -5 ------- Run | Yrd Mat Mat Min Exi Min Mat Fac Fac Fac Combat Hostiles Destroyed 47 | . 14 16 4 . 6 5 2 . . Guns 13 | . 9 3 . . . 1 . . . Cannons 2 | . . . . . . . 2 . . AOE 32 | . 5 13 4 . 6 4 . . . Classes Destroyed 11 | . 4 4 . . . 2 1 . . Worker 1 | . . 1 . . . . . . . Builder 8 | . 2 3 . . . 3 . . . Tunneler 1 | . . . . . . 1 . . . Hauler 1 | . . 1 . . . . . . . Recycler 4 | . 1 3 . . . . . . . Watcher 3 | . . 1 . . . 2 . . . Swarmer 23 | . 11 5 4 . . 3 . . . Grunt 18 | . 3 9 . . 6 . . . . Sentry 3 | . . 2 . . . 1 . . . Hunter 1 | . . . . . . 1 . . . Programmer 2 | . . . . . . . 2 . . Best Kill Streak 11 | . 7 9 11 . 3 3 1 . . Combat Bots Only 9 | . 7 5 9 . 3 3 1 . . Max Kills in Single Turn 4 | . 4 4 4 . 2 3 1 . . Gunslinging 1 | . 1 . . . . . . . . Exploded 4 | . 3 2 4 . 2 1 . . . Melee . | . . . . . . . . . . Uniques/NPCs Destroyed . | . . . . . . . . . . Combat | -11 -10 -9 -9 -9 -8 -8 -7 -6 -5 -------- Run | Yrd Mat Mat Min Exi Min Mat Fac Fac Fac Hostile Shots Fired 578 | . 117 115 . . 41 41 109 77 78 Missed 194 | . 36 26 . . 13 17 32 33 37 Hits 384 | . 81 89 . . 28 24 77 44 41 Melee 1 | . . 1 . . . . . . . Projectile 383 | . 81 88 . . 28 24 77 44 41 Critical Strikes 15 | . 2 2 . . 2 1 6 . 2 Damage Taken 5754 | . 827 1051 . . 604 232 1156 779 1105 Core 1975 | . 184 187 . . 114 50 195 230 1015 Absorbed by Shields . | . . . . . . . . . . Core Remaining (%) 64 | 100 26 . . . 24 90 72 72 . Volleys Fired 109 | . 34 37 1 . 7 15 10 3 2 Largest 3 | . 2 2 2 . 2 3 3 3 1 Hottest 130 | . 66 89 89 . 63 130 114 114 65 Shots Fired 214 | . 68 65 2 . 13 37 18 9 2 Gun 144 | . 66 41 1 . 4 26 1 3 2 Cannon 23 | . . . . . . . 17 6 . Launcher 47 | . 2 24 1 . 9 11 . . . Special . | . . . . . . . . . . Kinetic 105 | . 66 28 . . 4 3 1 3 . Thermal 30 | . . 13 1 . . 3 10 3 . Explosive 45 | . 2 24 1 . 9 9 . . . Electromagnetic 34 | . . . . . . 22 7 3 2 Robot Hit Streak 10 | . 10 6 . . 6 7 5 5 1 Robot Miss Streak 4 | . 3 3 . . 1 2 4 1 1 Penetration Max . | . . . . . . . . . . Secondary Targets 2 | . 2 . . . . . . . . Max Gunslinging Chain 1 | . 1 . . . . . . . . Shots Hit Robots 110 | . 43 30 . . 9 12 10 5 1 Core Hits 96 | . 24 35 4 . 11 15 4 2 1 Critical Kills 1 | . 1 . . . . . . . . Critical Parts Destroyed 1 | . 1 . . . . . . . . Critical Strikes 2 | . 2 . . . . . . . . Destroy 2 | . 2 . . . . . . . . Melee Attacks . | . . . . . . . . . . Impact . | . . . . . . . . . . Slashing . | . . . . . . . . . . Piercing . | . . . . . . . . . . Sneak Attacks . | . . . . . . . . . . Combat Hostiles . | . . . . . . . . . . Follow-up Attacks . | . . . . . . . . . . Damage Inflicted 4732 | . 968 1749 134 . 792 710 218 123 38 Guns 838 | . 383 210 . . 31 166 . 38 10 Cannons 290 | . . . . . . . 218 72 . Explosions 3547 | . 585 1534 130 . 758 540 . . . Melee . | . . . . . . . . . . Ramming 57 | . . 5 4 . 3 4 . 13 28 Kinetic 579 | . 383 127 . . 31 . . 38 . Thermal 753 | . 386 83 . . . 30 201 53 . Explosive 3066 | . 199 1534 130 . 758 445 . . . Electromagnetic 277 | . . . . . . 231 17 19 10 Impact . | . . . . . . . . . . Slashing . | . . . . . . . . . . Piercing . | . . . . . . . . . . Highest Corruption 13 | . 2 . . . . . 13 2 4 Average Corruption 6 | . 2 . . . . . 7 2 2 Corruption Purged . | . . . . . . . . . . Corruption Blocked . | . . . . . . . . . . Effects 18 | . 1 . . . . . 15 2 . Message Errors 6 | . . . . . . . 5 1 . Matter Fused 2 | . 1 . . . . . 1 . . Heat Flow Errors 2 | . . . . . . . 2 . . Parts Rejected 1 | . . . . . . . 1 . . Parts Fused 1 | . . . . . . . 1 . . Data Loss (minor) 3 | . . . . . . . 3 . . Data Loss (major) 3 | . . . . . . . 2 1 . Overload Shots . | . . . . . . . . . . Overflow Damage 332 | . 172 78 . . . 66 16 . . Projectiles 16 | . . . . . . . 16 . . Explosions 316 | . 172 78 . . . 66 . . . Melee . | . . . . . . . . . . Knockbacks 1 | . . . . . . . . . 1 Impact 1 | . . . . . . . . . 1 Kinetic . | . . . . . . . . . . Secondary . | . . . . . . . . . . Self-Inflicted Damage 417 | . 109 111 . . 138 46 . . 13 Shots 14 | . 1 5 . . 5 3 . . . Rammed 6 | . . . 1 . 1 . . . 4 Targets Rammed 15 | . . 3 1 . 1 2 . 4 4 Kicked 9 | . . 3 . . . 2 . 4 . Crushed . | . . . . . . . . . . Highest Temperature 273 | . 12 202 30 . 35 114 273 42 8 Average Temperature 44 | . 4 60 18 . 18 39 57 25 4 Received Heat Transfer 885 | . 120 291 . . 288 36 . 78 72 Siege Activations . | . . . . . . . . . . Martial Activations . | . . . . . . . . . . Shielding Activations . | . . . . . . . . . . Robots Disrupted . | . . . . . . . . . . Combat Hostiles . | . . . . . . . . . . Robots Corrupted . | . . . . . . . . . . Combat Hostiles . | . . . . . . . . . . Parts Fried 1 | . . . . . . 1 . . . Impact Corruptions . | . . . . . . . . . . Robots Melted . | . . . . . . . . . . Combat Hostiles . | . . . . . . . . . . Parts Melted . | . . . . . . . . . . Heat Transferred 718 | . 200 185 . . . 37 222 74 . Parts Sabotaged . | . . . . . . . . . . Parts Stolen . | . . . . . . . . . . Parts Stripped . | . . . . . . . . . . Power Chain Reactions 1 | . . . . . . 1 . . . Alert | -11 -10 -9 -9 -9 -8 -8 -7 -6 -5 ------- Run | Yrd Mat Mat Min Exi Min Mat Fac Fac Fac Maximum Alert Level 2 | . . 2 1 . . . . . . Low Security (%) 95 | 100 100 83 20 . 100 100 100 100 100 Level 1 4 | . . 14 79 . . . . . . Level 2 . | . . 1 . . . . . . . Level 3 . | . . . . . . . . . . Level 4 . | . . . . . . . . . . Level 5 . | . . . . . . . . . . High Security . | . . . . . . . . . . Max Security . | . . . . . . . . . . Peak Influence 402 | . 165 402 264 . 95 90 45 . . Initial 153 | . . 62 153 . . 13 . . . Average 31 | . 36 135 223 . 12 21 4 . . Influence Increases 1721 | . 423 616 131 . 192 263 96 . . Destroy 0b10 Robot/C 940 | . 280 320 80 . 120 100 40 . . Destroy 0b10 Robot/NC 90 | . 15 45 . . . 30 . . . Destroy Leader 208 | . 60 64 10 . 20 34 20 . . Successful Hack 27 | . 12 6 5 . . . 4 . . Disable Machine 90 | . 15 30 15 . . 15 15 . . Destroy Structure 291 | . 41 121 6 . 52 69 2 . . Partial Spotted 15 | . . 15 . . . . . . . Lose Combat Pursuer 60 | . . 15 15 . . 15 15 . . Influence Decreases 1721 | . 274 371 351 174 157 298 96 . . Entered New Map 524 | . . 87 241 174 . 22 . . . Time Decay 917 | . 114 204 110 . 137 256 96 . . Lost Part 160 | . 40 80 . . 20 20 . . . Purge Threat 120 | . 120 . . . . . . . . Squads Dispatched 15 | . 3 5 . . . . 2 2 3 Investigation 4 | . 2 1 . . . . . . 1 Extermination 4 | . . . . . . . 2 . 2 Reinforcement 7 | . 1 4 . . . . . 2 . Assault . | . . . . . . . . . . Garrison . | . . . . . . . . . . Intercept . | . . . . . . . . . . Searches Triggered . | . . . . . . . . . . Construction Impeded 1 | . . 1 . . . . . . . Haulers Reinforced . | . . . . . . . . . . Active Scanning Responses . | . . . . . . . . . . Cargo Convoy Interrupts . | . . . . . . . . . . Stealth | -11 -10 -9 -9 -9 -8 -8 -7 -6 -5 --------- Run | Yrd Mat Mat Min Exi Min Mat Fac Fac Fac Distress Signals 3 | . 1 1 . . . . 1 . . Communications Jammed . | . . . . . . . . . . Distress Signals . | . . . . . . . . . . Times Spotted 88 | . 19 24 2 . 6 13 4 7 13 Peak Tracking Total 7 | . 7 5 1 . 3 3 3 7 7 Tactical Retreats 5 | . . 1 1 . . 1 2 . . Traps | -11 -10 -9 -9 -9 -8 -8 -7 -6 -5 ------- Run | Yrd Mat Mat Min Exi Min Mat Fac Fac Fac Traps Triggered 8 | . 3 1 . . . 1 1 1 1 Indirectly . | . . . . . . . . . . Trap Hack Attempts . | . . . . . . . . . . Triggered . | . . . . . . . . . . Disarmed . | . . . . . . . . . . Reprogrammed . | . . . . . . . . . . Reused . | . . . . . . . . . . Traps Extracted . | . . . . . . . . . . Installed . | . . . . . . . . . . Triggered . | . . . . . . . . . . Objects Rigged 2 | . 2 . . . . . . . . Machines | -11 -10 -9 -9 -9 -8 -8 -7 -6 -5 ---------- Run | Yrd Mat Mat Min Exi Min Mat Fac Fac Fac Machines Disabled 6 | . 1 2 1 . . 1 1 . . Max in Single Turn 1 | . 1 1 1 . . 1 1 . . Machines Repaired . | . . . . . . . . . . Machines Dismantled . | . . . . . . . . . . Machines Sabotaged . | . . . . . . . . . . Overloaded Fab Kills . | . . . . . . . . . . Hacking | -11 -10 -9 -9 -9 -8 -8 -7 -6 -5 --------- Run | Yrd Mat Mat Min Exi Min Mat Fac Fac Fac Machines Accessed 11 | . 3 1 1 1 . 1 2 . 2 Terminals 9 | . 3 1 1 . . 1 2 . 1 Fabricators . | . . . . . . . . . . Repair Stations . | . . . . . . . . . . Recycling Units . | . . . . . . . . . . Scanalyzers . | . . . . . . . . . . Garrison Access 1 | . . . . . . . . . 1 Total Hacks 24 | . 9 5 1 1 . 2 2 . 4 Successful 11 | . 4 2 1 1 . . 2 . 1 Failed 13 | . 5 3 . . . 2 . . 3 Catastrophic 4 | . 3 . . . . . . . 1 Database Lockouts . | . . . . . . . . . . Manual 7 | . 4 . . 2 . . 1 . . Terminals 21 | . 9 5 1 . . 2 2 . 2 Fabricators . | . . . . . . . . . . Repair Stations . | . . . . . . . . . . Recycling Units . | . . . . . . . . . . Scanalyzers . | . . . . . . . . . . Garrison Access 2 | . . . . . . . . . 2 Terminal Hacks 10 | . 3 2 1 1 . . 2 . 1 Record 2 | . . 2 . . . . . . . Open DSF 2 | . . . . . . . 1 . 1 Emergency Access Points 1 | . . . . . . . 1 . . Alert Level 1 | . 1 . . . . . . . . Unreport Threat 1 | . 1 . . . . . . . . Dispatch Records 1 | . 1 . . . . . . . . Zone Layout 1 | . . . 1 . . . . . . Proto ID Catalog 1 | . . . . 1 . . . . . Fabricator Hacks . | . . . . . . . . . . Repair Station Hacks . | . . . . . . . . . . Recycling Unit Hacks . | . . . . . . . . . . Scanalyzer . | . . . . . . . . . . Garrison Access Hacks . | . . . . . . . . . . Unauthorized Hacks 1 | . 1 . . . . . . . . Terminals 1 | . 1 . . . . . . . . Detonate 1 | . 1 . . . . . . . . Fabricators . | . . . . . . . . . . Repair Stations . | . . . . . . . . . . Recycling Units . | . . . . . . . . . . Scanalyzers . | . . . . . . . . . . Garrison Access . | . . . . . . . . . . Data Cores Recovered . | . . . . . . . . . . Used . | . . . . . . . . . . Hacking Detections 6 | . 2 1 . . . 1 1 . 1 Full Trace Events 3 | . 1 1 . . . . . . 1 Feedback Events . | . . . . . . . . . . Feedback Blocked . | . . . . . . . . . . Robot Schematics Acquired . | . . . . . . . . . . Robots Built . | . . . . . . . . . . Authchips . | . . . . . . . . . . Time . | . . . . . . . . . . Total Robot Build Rating . | . . . . . . . . . . Part Schematics Acquired . | . . . . . . . . . . Parts Built . | . . . . . . . . . . Authchips . | . . . . . . . . . . Time . | . . . . . . . . . . Total Part Build Rating . | . . . . . . . . . . Parts Repaired . | . . . . . . . . . . Time . | . . . . . . . . . . Parts Recycled . | . . . . . . . . . . Recycled Matter . | . . . . . . . . . . Retrieved Matter . | . . . . . . . . . . Retrieved Components . | . . . . . . . . . . Parts Scanalyzed . | . . . . . . . . . . Part Schematics Acquired . | . . . . . . . . . . Parts Damaged . | . . . . . . . . . . Bothacking | -11 -10 -9 -9 -9 -8 -8 -7 -6 -5 ------------ Run | Yrd Mat Mat Min Exi Min Mat Fac Fac Fac Used RIF Installer . | . . . . . . . . . . Robots Hacked . | . . . . . . . . . . Non-combat . | . . . . . . . . . . Combat . | . . . . . . . . . . Robot Hacks Applied . | . . . . . . . . . . Relay Couplers Released . | . . . . . . . . . . Fabnet Peak Effective % . | . . . . . . . . . . Robots Rewired . | . . . . . . . . . . Allies Hacked . | . . . . . . . . . . Hacks Repelled . | . . . . . . . . . . Allies | -11 -10 -9 -9 -9 -8 -8 -7 -6 -5 -------- Run | Yrd Mat Mat Min Exi Min Mat Fac Fac Fac Total Allies . | . . . . . . . . . . Largest Group . | . . . . . . . . . . Highest-Rated Group . | . . . . . . . . . . Highest-Rated Ally . | . . . . . . . . . . Total Orders . | . . . . . . . . . . Ally Attacks . | . . . . . . . . . . Total Damage . | . . . . . . . . . . Kills . | . . . . . . . . . . Allies Corrupted . | . . . . . . . . . . Allies Melted . | . . . . . . . . . . Intel | -11 -10 -9 -9 -9 -8 -8 -7 -6 -5 ------- Run | Yrd Mat Mat Min Exi Min Mat Fac Fac Fac Active Infowar (turns) 3320 | . . . 88 497 527 1112 799 297 . Terrain 3316 | . . . 88 497 527 1112 795 297 . ECM 1060 | . . . . . . 218 549 293 . Robot Analysis Total . | . . . . . . . . . . Derelict Logs Recovered . | . . . . . . . . . . Drone Launches 1 | . . . . . 1 . . . . Drone Recoveries 1 | . . . . . 1 . . . . Exploration | -11 -10 -9 -9 -9 -8 -8 -7 -6 -5 ------------- Run | Yrd Mat Mat Min Exi Min Mat Fac Fac Fac Turns Passed 6279 | 90 540 429 226 674 1247 1299 928 298 548 Spaces Moved 4154 | 60 275 180 133 419 733 893 486 212 763 Core 399 | 18 5 9 . . 5 4 . 4 354 Treads 1509 | 42 248 . 129 419 671 . . . . Legs 1837 | . 22 171 4 . 57 889 486 208 . Wheels . | . . . . . . . . . . Hover 409 | . . . . . . . . . 409 Flight . | . . . . . . . . . . Fastest Speed 50 | 50 100 120 160 160 160 120 125 50 50 Average Speed 137 | 127 156 170 163 160 164 132 170 129 68 Slowest Speed 450 | 160 160 300 260 160 450 400 200 200 250 Overloaded Moves . | . . . . . . . . . . Propulsion Burnouts . | . . . . . . . . . . Robots Hopped . | . . . . . . . . . . Potential Cave-ins . | . . . . . . . . . . Cave-ins Triggered . | . . . . . . . . . . Exploration Rate (%) 34 | 4 46 22 40 77 87 38 9 6 20 Regions Visited 9 Branch Regions 3 Pre-discovered Areas . | . . . . . . . . . . Known Exits Taken . | . . . . . . . . . . Unknown Exits Taken 9 | 1 1 1 1 1 1 1 1 1 . Scrap Searched 1 | . . . . . 1 . . . . Spaces Dug 20 | . . 14 . . . 6 . . . Terrain Destroyed 401 | . 47 151 8 . 102 91 2 . . Melee . | . . . . . . . . . . Projectile 2 | . . . . . . . 2 . . AOE 399 | . 47 151 8 . 102 91 . . . Terrain Rammed . | . . . . . . . . . . Walls Destroyed . | . . . . . . . . . . Machines Disabled . | . . . . . . . . . . Actions | -11 -10 -9 -9 -9 -8 -8 -7 -6 -5 --------- Run | Yrd Mat Mat Min Exi Min Mat Fac Fac Fac Total 4520 | 73 330 241 140 423 761 976 566 224 786 Wait 39 | . . . . . . . 36 . 3 Move 4145 | 59 274 179 132 418 732 892 485 211 763 Hop . | . . . . . . . . . . Pick Up 69 | 8 8 12 2 2 6 19 10 1 1 Fast Attach 18 | 2 1 . 1 . . 8 . . 6 Attach 52 | 4 6 9 1 . 4 11 13 3 1 Detach 7 | . . . . . 1 1 2 1 2 Swap 33 | . 5 1 1 1 6 12 6 1 . Drop 33 | . 2 . 1 2 4 16 4 . 4 Fire 109 | . 34 37 1 . 7 15 10 3 2 Melee . | . . . . . . . . . . Ram 4 | . . . . . . . . . 4 Kick 9 | . . 3 . . . 2 . 4 . Crush 2 | . . . 1 . 1 . . . . Escape Stasis . | . . . . . . . . . . Rewire . | . . . . . . . . . . Trap . | . . . . . . . . . . Miscellaneous . | . . . . . . . . . . Route ------- -11/Scrapyard -10/Materials -9/Materials -9/Mines (discovered 3 exits: *Mat x2 / *Exi) -9/Exiles -8/Mines -8/Materials -7/Factory -6/Factory -5/Factory History --------- Turn | Location | Event 13 | -11/Scrapyard | Discovered new exit (range 16) 91 | -11/Scrapyard | Entered Materials 302 | -10/Materials | Build established: Mutant 365 | -10/Materials | Destroyed 7 combat bots 558 | -10/Materials | Discovered new exit (range 16) 578 | -10/Materials | Core integrity fell below 50% 627 | -10/Materials | Lost 4 parts (1p2n1w) 631 | -10/Materials | Entered another Materials area 631 | -9/Materials | Evolved 2 slots: Utility x2 800 | -9/Materials | Lost 6 parts (1p2n1u2w) 990 | -9/Materials | Discovered new exit (range 10) 1060 | -9/Materials | Entered Mines 1061 | -9/Mines | Assembled infested the area 1081 | -9/Mines | Destroyed 9 combat bots 1109 | -9/Mines | Met a Derelict bent on vengeance 1134 | -9/Mines | Met 8R-AWN 1163 | -9/Mines | Discovered new exit (range 6) 1227 | -9/Mines | Discovered new exit (range 16) 1279 | -9/Mines | Discovered new exit (range 5) 1286 | -9/Mines | Entered Exiles 1312 | -9/Exiles | Discovered new exit (range 15) 1360 | -9/Exiles | Welcomed by 8R-AWN 1382 | -9/Exiles | Met EX-HEX 1459 | -9/Exiles | Met EX-DEC 1515 | -9/Exiles | Visited The Gauntlet 1702 | -9/Exiles | Met EX-BIN 1725 | -9/Exiles | Aligned with FarCom system 1726 | -9/Exiles | Given EX-Vault access code 1773 | -9/Exiles | Opened EX-Vault 1782 | -9/Exiles | Found Prototype Device 1783 | -9/Exiles | Identified Supersonic Drone Bay 1837 | -9/Exiles | Warned to stay clear of 0b10 Research branches 1907 | -9/Exiles | Learned about 8R-AWN's background 1960 | -9/Exiles | Left Exiles lab with Supersonic Drone Bay 1960 | -9/Exiles | Entered Mines 1963 | -8/Mines | Core integrity fell below 50% 2010 | -8/Mines | Found DCF Scrap (13 items) 2838 | -8/Mines | Build established: Skirmisher 3099 | -8/Mines | Lost 3 parts (2n1w) 3182 | -8/Mines | Discovered new exit (range 14) 3207 | -8/Mines | Entered Materials 3207 | -8/Materials | Evolved 2 slots: Utility x1, Weapon x1 4487 | -8/Materials | Discovered new exit (range 15) 4506 | -8/Materials | Entered Factory 4506 | -7/Factory | Evolved 2 slots: Propulsion x2 5103 | -7/Factory | System corruption reached 10% 5151 | -7/Factory | Lost 5 parts (1p1u3w) 5413 | -7/Factory | Discovered new exit (range 16) 5434 | -7/Factory | Entered another Factory area 5434 | -6/Factory | Evolved 2 slots: Power x1, Utility x1 5700 | -6/Factory | Discovered new exit (range 12) 5731 | -6/Factory | Released all parts (8) 5732 | -6/Factory | Entered another Factory area 5732 | -5/Factory | Evolved 2 slots: Utility x1, Weapon x1 5760 | -5/Factory | Lost 6 parts (2p3n1w) 6033 | -5/Factory | Build established: Mutant 6261 | -5/Factory | Core integrity fell below 50% 6272 | -5/Factory | Core integrity fell below 20% 6280 | -5/Factory | Destroyed by P-70 Sage with Tesla Rifle Last Messages --------------- Acquired Imp. Arc Projector. Slug penetrates Wall. U-05 Engineer builds a Wall. Penetrated by Slug. ALERT: Potential suspicious activity detected, Programmers report to Factory Zone 3R. P-70 Sage resets Y-64 Sentinel, system corruption cleaned. U-05 Engineer lays Concrete. Slug penetrates Nuclear Reactor. Nuclear Reactor explodes. P-70 Sage destroyed. P-70 Sage resets Y-64 Sentinel, system corruption cleaned. Imp. Arc Projector destroyed. Connecting with Garrison Access... ALERT: Suspicious activity at Garrison Access F002. Dispatching Investigation squad. P-70 Sage resets G-50 Soldier, system corruption cleaned. Map ----- +----------------------------------------------------+ | ??????????????????# #???############ | | ??????????????????# #???# ! # | | ??????????????????+ #???# # | | ??????????????????# ##### | # | | ??????????????????# ## " %* # | | ??????????????????# ##""" ! # | | ??????????????????# # | | ??????????????????# # | | ??????????????????# " | | ??????????????????# " | | ??????????????????# | | ??????????????????# #### | | ??????????????????# ???# p | | ??????????????????# ???# | | ??????????????????# t???# ; | | ??????????????????# ??##^ # " | | ??????????????????# ### #;; " | | ??????????????????# # [[[ # # | | ??????????????????# # [ ###### | | ??????????????????# [[ #???? | | ??????????????????? ##???? | | ???????????????????? Y #????? | | ????????????????????? p #????? | | ????????????????????? pg" #????? | | ????????????????????????# %"" #????? | | ????????????????????????#@ g G #????? | | ????????????????????????# ] "" #????? | | ????????????????????????# g" #????? | | ????????????????????????# #????? | | ????????????????????????#### #####????? | | ???????????????????????????#######????????? | | ??????????????????????????????????????????? | | ??????????????????????????????????????????? | | ??????????????????????????????????????????? | | ??????????????????????????????????????????? | | ??????????????????????????????????????????? | | ??????????????????????????????????????????? | | ??????????????????????????????????????????? | | ??????????????????????????????????????????? | | ??????????????????????????????????????????? | | ??????????????????????????????????????????? | | ??????????????????????????????????????????? | | ??????????????????????????????????????????? | | ??????????????????????????????????????????? | | ??????????????????????????????????????????? | | ??????????????????????????????????????????? | | ??????????????????????????????????????????? | | | | | | | +----------------------------------------------------+ Best States ------------- Heat Dissipation 40 Energy Generation 28 Energy Capacity 360 Matter Stores 450 Matter Capacity 450 Sight Range 16 Terrain Scan Range 16 Terrain Scan Density 10 ECM Strength 1 Additional Mass Support 6 Armor Coverage 225 Resistance: EM 25 Evasion (%) 55 Targeting Accuracy 6 Target Analysis 5 Recoil Reduction 2 Item Schematics ----------------- None Robot Schematics ------------------ None Fabricated ------------ Nothing Repaired ---------- Nothing Alien Tech Used ----------------- None Achievements -------------- True Hacker Challenges ------------ None Game ------ Seed MultireflexNuclearFocus Manual? 0 Play Time 01:26:59 Cumulative 24.7 hours Start 2025.05.08 @ 17:29:31 End 2025.05.08 @ 21:23:42 Sessions 3 Manual Loads 0 Difficulty Rogue Special Mode None Game No. 35 Rogue 33 Adventurer 0 Explorer 2 Win Type - Total 0 Types 0/0/0/0/0/0/0/0/0/0 Lore% 10 Gallery% 20 Achievement% 19 Wizard Run 0 Options --------- Layout 1 ASCII 0 Keyboard 0 Movement Mouse Keybinds 0 Fullscreen 1 Font 24/Smallcaps Map View 50x35 Zoom Use 0% Tactical HUD 0 Map Filters NONE Filters NONE Steam 1 RUN: ee7051a2-ac26-4813-91e9-4cb480e4ca3c